Cogmind - Beta 14 @@@ ROGUE MODE // 2024.12.22 @ 13:32:23 Player: mehbruh Result: Self-destructed Performance ------------- Evolutions (0) 0 Regions Visited (4) 800 Robots Destroyed (30) 150 Value Destroyed (684) 684 Prototype IDs (27) 540 Alien Tech Used (0) 0 Bonus (300) 300 TOTAL SCORE: 2474 Bonus ------- Aligned with FarCom 300 Cogmind --------- Core Integrity 147/250 Matter 290/300 Energy 125/125 System Corruption 0% Temperature Cool (0) Movement Rolling (115) Ox1 Location -9/Mines Parts ------- > --- POWER (1) -------- Light Ion Engine > --- PROPULSION (2) --- Compact Wheel Compact Wheel > --- UTILITY (2) ------ Improved Heat Sink High-capacity Storage Unit > --- WEAPON (2) ------- Light Cannon Light Cannon > --- INVENTORY (20) --- Light Ion Engine Light Nuclear Core Light Treads Light Treads Compact Wheel Compact Wheel Compact Wheel Heat Sink Improved Heat Sink Propulsion Shielding Light Assault Rifle Light Cannon Light Cannon Datajack Longsword +1 Peak State ------------ > --- POWER ------------ Light Ion Engine > --- PROPULSION ------- Compact Wheel Compact Wheel > --- UTILITY ---------- Improved Heat Sink Large Storage Unit > --- WEAPON ----------- Light Cannon Light Cannon > --- INVENTORY -------- Light Ion Engine Light Nuclear Core Light Treads Light Treads Compact Wheel Compact Wheel Compact Wheel Heat Sink Improved Heat Sink Propulsion Shielding Light Assault Rifle Light Cannon Light Cannon Datajack Longsword +1 [Rating: 11] Favorites ----------- Power Light Ion Engine Engine Light Ion Engine Propulsion Compact Wheel Leg Aluminum Leg Wheel Compact Wheel Utility Seismic Detector Device Seismic Detector Storage Large Storage Unit Weapon Light Cannon Ballistic Gun Light Assault Rifle Ballistic Cannon Light Cannon Special Melee Weapon Datajack Build | -11 -10 -10 -10 -9 ------- Run | Yrd Mat Min Exi Min Slots Evolved . | . . . . . Power . | . . . . . Propulsion . | . . . . . Utility . | . . . . . Weapon . | . . . . . Parts Attached 28 | 9 14 4 1 . Power 3 | 1 1 1 . . Engine 3 | 1 1 1 . . Core . | . . . . . Reactor . | . . . . . Propulsion 8 | 4 3 1 . . Treads . | . . . . . Leg 3 | 2 1 . . . Wheel 5 | 2 2 1 . . Hover . | . . . . . Flight . | . . . . . Utility 6 | 2 1 2 1 . Device 3 | 1 . 2 . . Storage 3 | 1 1 . 1 . Processor . | . . . . . Hackware . | . . . . . Protection . | . . . . . Artifact . | . . . . . Weapon 11 | 2 9 . . . Energy Gun . | . . . . . Energy Cannon . | . . . . . Ballistic Gun 7 | 2 5 . . . Ballistic Cannon 3 | . 3 . . . Launcher . | . . . . . Special Weapon . | . . . . . Impact Weapon . | . . . . . Slashing Weapon . | . . . . . Piercing Weapon . | . . . . . Special Melee Weapon 1 | . 1 . . . Unidentified Prototypes . | . . . . . Parts Lost 3 | . 2 1 . . Power 1 | . 1 . . . Propulsion 1 | . 1 . . . Utility 1 | . . 1 . . Weapon . | . . . . . Highest Loss Streak 1 | . 1 1 . . To Critical Strikes . | . . . . . Average Slot Usage (%) 99 | . 99 100 100 . Engine 13 | . 13 14 14 . Leg 11 | . 18 . . . Wheel 16 | . 9 28 28 . Device 14 | . 14 14 14 . Storage 14 | . 14 14 14 . Ballistic Gun 8 | . 14 . . . Ballistic Cannon 18 | . 12 28 28 . Peak Build Rating 11 | 7 8 10 11 . Average Rating 8 | 5 7 9 10 . On Entrance 7 | . 7 8 10 11 Naked Turns . | . . . . . Heaviest Build 50 | 11 30 30 50 . Greatest Support 32 | 26 26 32 32 . Greatest Overweight (x) 1 | . 1 1 1 . Average Overweight (x) . | . . . . . Largest Inventory Capacity 20 | 8 15 15 20 . Average Capacity 12 | 7 10 15 15 . Most Carried 15 | 7 11 14 15 . Average Carried 10 | 4 8 13 14 . Final Capacity 20 | 8 15 15 20 20 Final Carried 15 | 6 11 14 15 15 Class Distribution -------------------- 100% | Mutant Dominant Class ---------------- Mutant | -10/Materials Mutant | -10/Mines Mutant | -10/Exiles Mutant | -9/Mines Resources | -11 -10 -10 -10 -9 ----------- Run | Yrd Mat Min Exi Min Matter Collected 852 | 263 391 198 . . Remotely . | . . . . . Salvage Created 892 | 30 584 278 . . Parts 65 | 5 43 17 . . Haulers Intercepted 2 | . 2 . . . Recyclers Shooed 2 | . 2 . . . Parts Field Recycled . | . . . . . Retrieved Matter . | . . . . . Parts Self-Destructed . | . . . . . Prevented . | . . . . . Kills | -11 -10 -10 -10 -9 ------- Run | Yrd Mat Min Exi Min Combat Hostiles Destroyed 22 | . 13 9 . . Guns 10 | . 10 . . . Cannons 12 | . 3 9 . . Classes Destroyed 8 | 1 6 1 . . Worker 1 | . . 1 . . Tunneler 1 | 1 . . . . Hauler 2 | . 2 . . . Recycler 1 | . 1 . . . Operator 1 | . 1 . . . Watcher 2 | . 2 . . . Swarmer 8 | . 5 3 . . Grunt 14 | . 8 6 . . Best Kill Streak 4 | 1 3 4 . . Combat Bots Only 4 | . 3 4 . . Max Kills in Single Turn 1 | 1 1 1 . . Gunslinging . | . . . . . Exploded . | . . . . . Melee . | . . . . . Uniques/NPCs Destroyed . | . . . . . Combat | -11 -10 -10 -10 -9 -------- Run | Yrd Mat Min Exi Min Hostile Shots Fired 86 | . 61 25 . . Missed 22 | . 14 8 . . Damage Taken 704 | . 491 213 . . Core 103 | . 75 28 . . Absorbed by Shields . | . . . . . Regen/Repaired (Parts) 55 | . 55 . . . Core Remaining (%) 100 | 100 . . . . Volleys Fired 85 | 3 62 20 . . Largest 2 | 2 2 2 . . Hottest 70 | 40 70 70 . . Shots Fired 170 | 6 124 40 . . Gun 90 | 6 84 . . . Cannon 80 | . 40 40 . . Launcher . | . . . . . Special . | . . . . . Kinetic 170 | 6 124 40 . . Thermal . | . . . . . Explosive . | . . . . . Electromagnetic . | . . . . . Robot Hit Streak 16 | 4 16 7 . . Robot Miss Streak 4 | 1 4 2 . . Penetration Max . | . . . . . Secondary Targets . | . . . . . Shots Hit Robots 107 | 4 79 24 . . Core Hits 48 | 2 33 13 . . Critical Kills . | . . . . . Critical Parts Destroyed . | . . . . . Critical Strikes 1 | . 1 . . . Blast 1 | . 1 . . . Melee Attacks 2 | . 2 . . . Impact . | . . . . . Slashing . | . . . . . Piercing . | . . . . . Sneak Attacks 2 | . 2 . . . Combat Hostiles . | . . . . . Follow-up Attacks . | . . . . . Damage Inflicted 1353 | 32 867 454 . . Guns 525 | 32 493 . . . Cannons 819 | . 365 454 . . Explosions . | . . . . . Melee . | . . . . . Ramming 9 | . 9 . . . Kinetic 1344 | 32 858 454 . . Thermal . | . . . . . Explosive . | . . . . . Electromagnetic . | . . . . . Impact . | . . . . . Slashing . | . . . . . Piercing . | . . . . . Highest Corruption . | . . . . . Average Corruption . | . . . . . Corruption Purged . | . . . . . Corruption Blocked . | . . . . . Overload Shots . | . . . . . Overflow Damage 7 | . 7 . . . Projectiles 7 | . 7 . . . Explosions . | . . . . . Melee . | . . . . . Knockbacks 5 | . 4 1 . . Impact 1 | . 1 . . . Kinetic 4 | . 3 1 . . Secondary . | . . . . . Self-Inflicted Damage . | . . . . . Shots . | . . . . . Rammed . | . . . . . Targets Rammed 6 | . 6 . . . Kicked 6 | . 6 . . . Crushed . | . . . . . Highest Temperature 105 | . 67 105 . . Average Temperature 23 | . 15 58 . . Received Heat Transfer 303 | . 183 120 . . Siege Activations . | . . . . . Robots Corrupted . | . . . . . Combat Hostiles . | . . . . . Parts Fried . | . . . . . Impact Corruptions . | . . . . . Robots Melted . | . . . . . Combat Hostiles . | . . . . . Parts Melted . | . . . . . Heat Transferred . | . . . . . Parts Sabotaged . | . . . . . Parts Stolen . | . . . . . Parts Stripped . | . . . . . Power Chain Reactions . | . . . . . Alert | -11 -10 -10 -10 -9 ------- Run | Yrd Mat Min Exi Min Peak Influence 320 | 5 293 320 . . Initial 75 | . 3 75 . . Average 161 | 1 145 222 . . Maximum Alert Level 1 | . 1 1 . . Low Security (%) 68 | 100 81 36 . . Level 1 31 | . 18 63 . . Level 2 . | . . . . . Level 3 . | . . . . . Level 4 . | . . . . . Level 5 . | . . . . . High Security . | . . . . . Max Security . | . . . . . Squads Dispatched 3 | . 3 . . . Investigation 2 | . 2 . . . Extermination . | . . . . . Reinforcement 1 | . 1 . . . Assault . | . . . . . Garrison . | . . . . . Intercept . | . . . . . Searches Triggered . | . . . . . Construction Impeded . | . . . . . Haulers Reinforced . | . . . . . Active Scanning Responses . | . . . . . Cargo Convoy Interrupts . | . . . . . Stealth | -11 -10 -10 -10 -9 --------- Run | Yrd Mat Min Exi Min Distress Signals 6 | . 6 . . . Communications Jammed . | . . . . . Distress Signals . | . . . . . Times Spotted 43 | . 32 11 . . Peak Tracking Total 5 | . 5 3 . . Tactical Retreats 3 | . 2 1 . . Traps | -11 -10 -10 -10 -9 ------- Run | Yrd Mat Min Exi Min Traps Triggered 2 | . 2 . . . Indirectly . | . . . . . Trap Hack Attempts 21 | . 21 . . . Triggered . | . . . . . Disarmed 2 | . 2 . . . Reprogrammed 2 | . 2 . . . Reused . | . . . . . Traps Extracted . | . . . . . Installed . | . . . . . Triggered . | . . . . . Machines | -11 -10 -10 -10 -9 ---------- Run | Yrd Mat Min Exi Min Machines Disabled 2 | . 2 . . . Max in Single Turn 1 | . 1 . . . Machines Repaired . | . . . . . Machines Dismantled . | . . . . . Machines Sabotaged . | . . . . . Overloaded Fab Kills . | . . . . . Hacking | -11 -10 -10 -10 -9 --------- Run | Yrd Mat Min Exi Min Machines Accessed 8 | . 7 . 1 . Terminals 6 | . 6 . . . Fabricators . | . . . . . Repair Stations 1 | . 1 . . . Recycling Units . | . . . . . Scanalyzers . | . . . . . Garrison Access . | . . . . . Total Hacks 21 | . 20 . 1 . Successful 15 | . 14 . 1 . Failed 6 | . 6 . . . Catastrophic 1 | . 1 . . . Database Lockouts . | . . . . . Manual 12 | . 11 . 1 . Terminals 17 | . 17 . . . Fabricators . | . . . . . Repair Stations 3 | . 3 . . . Recycling Units . | . . . . . Scanalyzers . | . . . . . Garrison Access . | . . . . . Terminal Hacks 6 | . 5 . 1 . Robot Analysis 1 | . 1 . . . Prototype ID Bank 3 | . 3 . . . Disarm Traps 1 | . 1 . . . Derelict Proto ID Bank 1 | . . . 1 . Fabricator Hacks . | . . . . . Repair Station Hacks 2 | . 2 . . . Scan Component 1 | . 1 . . . Repair 1 | . 1 . . . Recycling Unit Hacks . | . . . . . Scanalyzer . | . . . . . Garrison Access Hacks . | . . . . . Unauthorized Hacks 7 | . 7 . . . Terminals 7 | . 7 . . . Botnet 2 | . 2 . . . Skim 5 | . 5 . . . Fabricators . | . . . . . Repair Stations . | . . . . . Recycling Units . | . . . . . Scanalyzers . | . . . . . Garrison Access . | . . . . . Data Cores Recovered 1 | . 1 . . . Used . | . . . . . Hacking Detections 7 | . 7 . . . Full Trace Events . | . . . . . Feedback Events . | . . . . . Feedback Blocked . | . . . . . Robot Schematics Acquired . | . . . . . Robots Built . | . . . . . Authchips . | . . . . . Time . | . . . . . Total Robot Build Rating . | . . . . . Part Schematics Acquired . | . . . . . Parts Built . | . . . . . Authchips . | . . . . . Time . | . . . . . Total Part Build Rating . | . . . . . Parts Repaired 1 | . 1 . . . Time 26 | . 26 . . . Parts Recycled . | . . . . . Recycled Matter . | . . . . . Retrieved Matter . | . . . . . Retrieved Components . | . . . . . Parts Scanalyzed . | . . . . . Part Schematics Acquired . | . . . . . Parts Damaged . | . . . . . Bothacking | -11 -10 -10 -10 -9 ------------ Run | Yrd Mat Min Exi Min Used RIF Installer . | . . . . . Robots Hacked 1 | . 1 . . . Non-combat 1 | . 1 . . . Combat . | . . . . . Robot Hacks Applied 2 | . 2 . . . parse_system 1 | . 1 . . . no_distress 1 | . 1 . . . Relay Couplers Released . | . . . . . Fabnet Peak Effective % . | . . . . . Robots Rewired . | . . . . . Allies Hacked . | . . . . . Hacks Repelled . | . . . . . Allies | -11 -10 -10 -10 -9 -------- Run | Yrd Mat Min Exi Min Total Allies . | . . . . . Largest Group . | . . . . . Highest-Rated Group . | . . . . . Highest-Rated Ally . | . . . . . Total Orders . | . . . . . Ally Attacks . | . . . . . Total Damage . | . . . . . Kills . | . . . . . Allies Corrupted . | . . . . . Allies Melted . | . . . . . Intel | -11 -10 -10 -10 -9 ------- Run | Yrd Mat Min Exi Min Robot Analysis Total 1 | . 1 . . . Derelict Logs Recovered . | . . . . . Drone Launches . | . . . . . Drone Recoveries . | . . . . . Exploration | -11 -10 -10 -10 -9 ------------- Run | Yrd Mat Min Exi Min Turns Passed 2064 | 81 1199 531 253 . Spaces Moved 1376 | 58 611 460 247 . Core 1 | 1 . . . . Treads . | . . . . . Legs 444 | 5 439 . . . Wheels 931 | 52 172 460 247 . Hover . | . . . . . Flight . | . . . . . Fastest Speed 50 | 50 90 100 100 . Average Speed 106 | 91 115 100 101 . Slowest Speed 120 | 120 120 105 115 . Overloaded Moves . | . . . . . Propulsion Burnouts . | . . . . . Robots Hopped . | . . . . . Cave-ins Triggered . | . . . . . Exploration Rate (%) 45 | 4 94 62 62 4 Regions Visited 4 Branch Regions 3 Pre-discovered Areas . | . . . . . Known Exits Taken 1 | . 1 . . . Unknown Exits Taken 3 | 1 . 1 1 . Scrap Searched 1 | . . 1 . . Spaces Dug . | . . . . . Terrain Destroyed . | . . . . . Melee . | . . . . . Projectile . | . . . . . AOE . | . . . . . Terrain Rammed . | . . . . . Walls Destroyed . | . . . . . Machines Disabled . | . . . . . Actions | -11 -10 -10 -10 -9 --------- Run | Yrd Mat Min Exi Min Total 1811 | 79 994 489 249 . Wait 261 | . 259 2 . . Move 1372 | 57 610 459 246 . Hop . | . . . . . Pick Up 24 | 8 12 3 1 . Fast Attach 6 | 5 1 . . . Attach 8 | 4 3 1 . . Detach 2 | 2 . . . . Swap 14 | . 10 3 1 . Drop 10 | . 8 1 1 . Fire 85 | 3 62 20 . . Melee 2 | . 2 . . . Ram . | . . . . . Kick 6 | . 6 . . . Crush . | . . . . . Escape Stasis . | . . . . . Rewire . | . . . . . Trap 21 | . 21 . . . Miscellaneous . | . . . . . Route ------- -11/Scrapyard -10/Materials (discovered 6 exits: *Mat x3 / *Min x2 / Sub) -10/Mines (discovered 3 exits: Mat x2 / *Exi) -10/Exiles -9/Mines History --------- Turn | Location | Event 17 | -11/Scrapyard | Discovered new exit (range 16) 82 | -11/Scrapyard | Entered Materials 256 | -10/Materials | Discovered new exit (range 8) 299 | -10/Materials | Repaired Lgt. Assault Rifle 320 | -10/Materials | Build established: Mutant 382 | -10/Materials | Discovered new exit (range 5) 544 | -10/Materials | Discovered new exit (range 7) 626 | -10/Materials | Discovered new exit (range 15) 879 | -10/Materials | Identified exit to Mines 891 | -10/Materials | Discovered new exit (range 15) 952 | -10/Materials | Loaded intel: 14 trap records 1064 | -10/Materials | Identified exit to Subcaves 1064 | -10/Materials | Learned location of 2 exits from Materials 1104 | -10/Materials | Learned 2 Storage zone layouts 1152 | -10/Materials | Learned 2 Materials zone layouts 1182 | -10/Materials | Derelicts attacked the area 1226 | -10/Materials | Loaded intel: 8 terminal locations 1278 | -10/Materials | Learned Materials emergency access door positions 1281 | -10/Materials | Entered Mines 1282 | -10/Mines | Identified exit to Materials 1556 | -10/Mines | Assembled infested the area 1686 | -10/Mines | Found a damaged Exp. Sensor Array with a note attached 1807 | -10/Mines | Deemed a non-threat by the Exiles lab entrance 1808 | -10/Mines | Discovered new exit (range 5) 1812 | -10/Mines | Entered Exiles 1836 | -10/Exiles | Met 8R-AWN 1851 | -10/Exiles | Met EX-HEX 1880 | -10/Exiles | Met EX-BIN 1894 | -10/Exiles | Aligned with FarCom system 1895 | -10/Exiles | Given EX-Vault access code 1920 | -10/Exiles | Opened EX-Vault 1924 | -10/Exiles | Found Longsword +1 1945 | -10/Exiles | Warned to stay clear of 0b10 Research branches 1980 | -10/Exiles | Met EX-DEC 2052 | -10/Exiles | Discovered new exit (range 14) 2065 | -10/Exiles | Left Exiles lab with Longsword +1 2065 | -10/Exiles | Entered Mines 2065 | -9/Mines | Self-destructed Last Messages --------------- And if we have to leave here due to unforeseen circumstances, don't worry the FarCom system will continue to maintain contact via our distributed network. EX-BIN: And don't even think about spreading that code around. We're gonna change it right after you leave. Most certainly not to something like 1234 which I did last time as a little joke and some thief managed to sneak in here and steal a few of HEX's prototypes. EX-DEC: Ah I see we have a visitor. One wrong move in here and I'll invert your atomic chain! 01982_ EX-DEC: "Oops, I hope HEX didn't hear that..." 02030_ Dropped Lrg. Storage Unit. 02052_ EXIT=FOUND LOCATION=UNKNOWN GOAL=ESCAPE 02065_ Receiving FarCom transmissions... Map ----- +----------------------------------------------------+ | | | | | | | ?????????????????????????????????????????????????? | | ?????????????????????????????????????????????????? | | ?????????????????????????????????????????????????? | | ?????????????????????????????????????????????????? | | ?????????????????????????????????????????????????? | | ?????????????????????????????????????????????????? | | ?????????????????????????????????????????????????? | | ?????????????????????????????????????????????????? | | ?????????????????????????????????s???????????????? | | ????????????????????????????????s????????????????? | | ?????????????????????????????????????????????????? | | ??????????????????????????????????s??????????????? | | ?????????????????????????????????????????????????? | | ?????????????????????????????????????????????????? | | ?????????????????????????????????????????????????? | | ?????????????????????????????????????????????????? | | ?????????????????????????????????????????????????? | | ?????????????????????????????????????????????????? | | ????????????????????#????????????????????????????? | | ???????????????????## ######?????????????????????? | | ??????????????? ## # #?????????????????????? | | ?????????????? #?????????????????????? | | ???????????????? """ @ #?????????????????????? | | ?????????????????### """ ??????????????????? | | ???????????????????# """ #####?????????????????? | | ???????????????????# k #?????????????????????? | | ???????????????????# k #?????????????????????? | | ???????????????????### ####?????????????????????? | | ?????????????????????# ?????????????????????????? | | ?????????????????????# ?????????????????????????? | | ?????????????????????# ?????????????????????????? | | ?????????????????????# ??????????????????????????? | | ?????????????????????# ??????????????????????????? | | ?????????????????????# ??????????????????????????? | | ????????????????????? ???????????????????????????? | | ????????????????????? ???????????????????????????? | | ????????????????????? ???????????????????????????? | | ?????????????????????????????????????????????????? | | ?????????????????????????????????????????????????? | | ?????????????????????????????????????????????????? | | ?????????????????????????????????????????????????? | | ?????????????????????????????????????????????????? | | ?????????????????????????????????????????????????? | | ?????????????????????????????????????????????????? | | ?????????????????????????????????????????????????? | | ?????????????????????????????????????????????????? | | ?????????????????????????????????????????????????? | +----------------------------------------------------+ Best States ------------- Heat Dissipation 39 Energy Generation 10 Energy Capacity 125 Matter Stores 300 Matter Capacity 300 Sight Range 16 Terrain Scan Density 10 Evasion (%) 55 Item Schematics ----------------- None Robot Schematics ------------------ None Fabricated ------------ Nothing Alien Tech Used ----------------- None Achievements -------------- None Challenges ------------ None Game ------ Seed RecyclingEnhancedCompactor Manual? 0 Play Time 00:14:23 Cumulative 68.0 hours Start 2024.12.13 @ 17:54:52 End 2024.12.22 @ 13:32:23 Sessions 3 Manual Loads 0 Difficulty Rogue Special Mode None Game No. 68 Rogue 68 Adventurer 0 Explorer 0 Win Type - Total 2 Types 2/0/0/0/0/0/0/0/0 Lore% 33 Gallery% 44 Achievement% 44 Wizard Run 0 Options --------- Layout 1 ASCII 0 Keyboard 0 Movement Arrows Keybinds 0 Fullscreen 1 Font 24/Smallcaps Map View 50x35 Zoom Use 0% Tactical HUD 1 Map Filters NONE Filters NONE Steam 1 RUN: 712b1303-8bf4-4a1b-a9a2-e8caa9327db7